bitfinex/quotes_BTCUSD_20250408
["timestamp","ask_amount","ask_price","bid_price","bid_amount"]
[1744076762450,0.74937883,80324.0,80323.0,0.002]
[1744076762681,0.87878428,80324.0,80323.0,0.002]
[1744076763105,0.249055,80304.0,80293.0,0.308339]
[1744076763304,0.589078,80296.0,80293.0,0.0468]
[1744076763506,0.34,80291.0,80290.0,0.0003374]
[1744076763665,0.34930827,80291.0,80290.0,0.0003374]
[1744076764104,0.51419856,80291.0,80290.0,0.0003374]
[1744076764306,0.47869697,80291.0,80290.0,0.0003374]
[1744076764783,0.47879627,80291.0,80290.0,0.0003374]
[1744076764984,0.49439594,80291.0,80290.0,0.0003374]
[1744076765269,0.77348379,80291.0,80290.0,0.0003374]
[1744076765567,0.34,80272.0,80269.0,0.012458]
[1744076765683,0.26363785,80290.0,80281.0,0.012456]
[1744076765684,0.34,80282.0,80281.0,0.012456]
[1744076766087,0.02800724,80291.0,80290.0,0.012454]
[1744076766088,0.0050993,80291.0,80290.0,0.012454]
[1744076766287,3e-07,80291.0,80290.0,0.14433319]
[1744076766461,0.16808,80303.0,80302.0,0.261511]
[1744076767007,0.16808,80303.0,80300.0,0.249063]
[1744076767008,0.34,80302.0,80300.0,0.012453]
[1744076767204,0.34,80302.0,80301.0,0.261515]
[1744076767405,0.1195,80317.0,80316.0,0.261466]
[1744076767717,0.249023,80314.0,80304.0,0.261504]
[1744076767906,0.42898315,80317.0,80306.0,0.261497]
[1744076767907,0.4693887,80313.0,80306.0,0.261497]
[1744076768527,0.4693887,80313.0,80312.0,0.012451]
[1744076768726,0.1195,80317.0,80316.0,0.01245]
[1744076768935,0.1195,80317.0,80313.0,0.012451]
[1744076768936,0.002,80314.0,80313.0,0.261476]
[1744076769143,0.5126,80314.0,80313.0,0.26137339]
[1744076769360,0.1726,80314.0,80313.0,0.26137339]
[1744076769764,0.002,80314.0,80313.0,0.26137339]
[1744076770283,0.008,80317.0,80316.0,0.261466]
[1744076770428,0.001,80314.0,80312.0,0.012451]
[1744076770630,0.344,80317.0,80316.0,0.01245]
[1744076771030,0.34,80317.0,80316.0,0.01245]
[1744076771232,0.1706,80318.0,80317.0,0.261463]
[1744076771684,0.5106,80318.0,80317.0,0.01245]
[1744076771998,0.98708,80333.0,80332.0,0.261414]
[1744076772322,0.98708,80333.0,80332.0,0.310214]
[1744076772851,1.32708,80333.0,80332.0,0.310214]
[1744076773050,1.32708,80333.0,80332.0,0.261414]
[1744076773249,1.32708,80333.0,80332.0,0.26154012]
[1744076773599,1.32708,80333.0,80332.0,0.00012612]
[1744076773915,1.32708,80333.0,80332.0,0.01257412]
[1744076774063,1.32908,80333.0,80332.0,0.01257412]
[1744076774409,1.33008,80333.0,80332.0,0.01257412]
[1744076775188,1.47400955,80333.0,80332.0,0.00012612]
[1744076776273,1.4594687,80333.0,80332.0,0.01257412]
[1744076777312,1.33008,80333.0,80332.0,0.01257412]
[1744076778263,1.32908,80333.0,80332.0,0.01257412]
[1744076778677,1.49964,80333.0,80332.0,0.06137412]
[1744076779029,1.32708,80333.0,80332.0,0.06137412]
[1744076779241,1.49764,80333.0,80332.0,0.06137412]
[1744076779541,0.0001687,80357.0,80356.0,0.261336]
[1744076779688,1.2870774,80357.0,80356.0,0.261336]
[1744076779917,1.6270774,80357.0,80356.0,0.261336]
[1744076780324,1.1576887,80357.0,80356.0,0.261336]
[1744076780702,0.34,80356.0,80345.0,0.248923]
[1744076780926,0.34,80349.0,80347.0,0.012446]
[1744076781130,0.4693887,80349.0,80348.0,0.248917]
[1744076781322,0.4693887,80349.0,80348.0,0.261362]
[1744076781568,0.4693887,80349.0,80346.0,0.261369]
[1744076781569,0.563789,80349.0,80346.0,0.012446]
[1744076781808,0.48334004,80349.0,80348.0,0.261362]
[1744076782362,0.51056,80355.0,80354.0,0.261342]
[1744076782770,0.52446717,80355.0,80354.0,0.261342]
[1744076783397,0.52446717,80355.0,80354.0,0.012444]
[1744076784109,0.35890717,80355.0,80354.0,0.012444]
[1744076784321,0.52946717,80355.0,80354.0,0.012444]
[1744076785014,0.52946717,80355.0,80354.0,0.261342]
[1744076785445,0.52946717,80355.0,80352.0,0.248902]
[1744076785629,0.34,80354.0,80351.0,0.261347]
[1744076785801,0.34,80354.0,80353.0,0.261346]
[1744076786000,0.34,80350.0,80337.0,0.248951]
[1744076786203,0.34,80348.0,80344.0,0.012446]
[1744076786501,0.588951,80337.0,80332.0,0.00012612]
[1744076786706,0.34,80333.0,80332.0,0.00012612]
[1744076786913,0.4693887,80333.0,80332.0,0.00012612]
[1744076787322,0.4693887,80333.0,80332.0,0.01257412]
[1744076787898,0.4693887,80333.0,80332.0,0.00012612]
[1744076789070,0.48392955,80333.0,80332.0,0.00012612]
[1744076789262,0.76146262,80333.0,80332.0,0.00112612]
[1744076789469,0.49322489,80333.0,80332.0,0.00112612]
[1744076789784,0.50667289,80333.0,80332.0,0.00112612]
[1744076789987,0.75563589,80333.0,80332.0,0.00112612]
[1744076790867,0.50667289,80333.0,80332.0,0.00112612]
[1744076791948,0.49422489,80333.0,80332.0,0.00112612]
[1744076792148,0.47968404,80333.0,80332.0,0.26254012]
[1744076792358,0.47968404,80333.0,80332.0,0.00112612]
[1744076792559,0.74318789,80333.0,80332.0,0.00112612]
[1744076792781,0.75563589,80333.0,80332.0,0.00112612]
[1744076793001,0.49422489,80333.0,80332.0,0.00112612]
[1744076793193,0.64422489,80333.0,80332.0,0.00112612]
[1744076794181,0.76896092,80333.0,80332.0,0.00112612]
[1744076794387,1.01792392,80333.0,80332.0,0.00112612]
[1744076794786,0.90563589,80333.0,80332.0,0.00112612]
[1744076795277,0.90463589,80333.0,80332.0,0.00112612]
[1744076795464,0.34,80312.0,80311.0,0.249029]
[1744076795590,1.6269087,80312.0,80311.0,0.24945]
[1744076795795,1.49752,80312.0,80311.0,0.261901]
[1744076796031,1.32696,80312.0,80311.0,0.261901]
[1744076796237,1.50675083,80312.0,80311.0,0.261901]
[1744076796955,1.50875083,80312.0,80311.0,0.261901]
[1744076797775,1.52247101,80312.0,80311.0,0.261901]
[1744076798625,1.52347101,80312.0,80311.0,0.261901]
[1744076799201,1.52647101,80312.0,80311.0,0.261901]
[1744076799921,1.68285156,80312.0,80311.0,0.000421]
[1744076800119,1.68285156,80312.0,80256.0,1.316002]
[1744076800120,0.34,80292.0,80290.0,0.0003374]
[1744076800305,0.34,80292.0,80291.0,0.012454]
[1744076800524,0.6389487,80292.0,80291.0,0.261547]
[1744076800921,0.6389487,80292.0,80290.0,0.0003374]
[1744076801120,0.74547655,80291.0,80290.0,0.0003374]
[1744076801692,0.34934427,80291.0,80290.0,0.0127914]
[1744076801900,0.51890427,80291.0,80290.0,0.0127914]
[1744076802481,0.51890427,80291.0,80290.0,0.0003374]
[1744076802482,0.64829297,80291.0,80290.0,0.0003374]
[1744076802921,0.35234427,80291.0,80290.0,0.0127914]
[1744076803224,0.34934427,80291.0,80290.0,0.0127914]
[1744076803422,0.51890427,80291.0,80290.0,0.0127914]
[1744076803624,0.34934427,80291.0,80290.0,0.0127914]
[1744076803827,0.52094427,80291.0,80290.0,0.0127914]
[1744076804335,0.34934427,80291.0,80290.0,0.0127914]
[1744076804536,1.12983231,80312.0,80311.0,0.012451]
[1744076804829,1.29943231,80312.0,80311.0,0.012451]
[1744076805195,0.01454085,80311.0,80300.0,0.012453]
[1744076805399,0.15,80304.0,80301.0,0.012453]
[1744076805598,0.15,80304.0,80299.0,0.249068]
[1744076805599,0.1293887,80303.0,80302.0,0.012452]
[1744076806215,0.01454085,80311.0,80303.0,0.261508]
[1744076806386,0.49,80309.0,80305.0,0.261499]
[1744076806582,0.34,80307.0,80306.0,0.012452]
[1744076806833,0.4693887,80307.0,80306.0,0.012452]
[1744076807034,0.4693887,80307.0,80304.0,0.249051]
[1744076807595,0.4693887,80307.0,80304.0,0.261503]
[1744076808505,0.4723887,80307.0,80304.0,0.261503]
[1744076808707,0.4723887,80307.0,80306.0,0.249047]
[1744076809096,0.4763887,80307.0,80306.0,0.261499]
[1744076809526,0.347,80307.0,80306.0,0.261499]
[1744076809818,0.004,80307.0,80306.0,0.261499]
[1744076809949,0.15,80309.0,80308.0,0.261493]
[1744076810347,0.012452,80308.0,80299.0,0.012453]
[1744076810681,0.34,80306.0,80301.0,0.012453]
[1744076810858,0.249084,80295.0,80287.0,0.297804]
[1744076811061,0.6389887,80294.0,80288.0,0.012455]
[1744076811246,0.6389887,80294.0,80293.0,0.012454]
[1744076811247,0.5096,80294.0,80293.0,0.012454]
[1744076811715,0.5096,80294.0,80293.0,0.261541]
[1744076812288,0.5136,80294.0,80293.0,0.261541]
[1744076812472,0.344,80294.0,80293.0,0.261541]
[1744076812667,0.5136,80294.0,80293.0,0.261541]
[1744076813889,0.5176,80294.0,80293.0,0.261541]
[1744076814298,0.348,80294.0,80293.0,0.261541]
[1744076814499,0.155,80309.0,80308.0,0.261493]
[1744076814749,0.3246,80309.0,80308.0,0.261493]
[1744076815123,0.3196,80309.0,80308.0,0.261493]
[1744076816087,0.3216,80309.0,80308.0,0.261493]
[1744076816269,0.1716,80309.0,80308.0,0.261493]
[1744076816568,0.002,80309.0,80308.0,0.261493]
[1744076816782,0.5156,80309.0,80308.0,0.261493]
[1744076817336,0.5186,80309.0,80308.0,0.261493]
[1744076817538,0.009,80309.0,80308.0,0.261493]
[1744076817759,0.006,80309.0,80308.0,0.261493]
[1744076817965,0.1696,80309.0,80308.0,0.261493]
[1744076818369,0.1736,80309.0,80308.0,0.261493]
[1744076818573,0.1696,80309.0,80308.0,0.261493]
[1744076818935,0.1696,80309.0,80308.0,0.264493]
[1744076819149,0.1706,80309.0,80308.0,0.264493]
[1744076819346,0.001,80309.0,80308.0,0.264493]
[1744076819549,0.1706,80309.0,80308.0,0.264493]
[1744076819769,0.1696,80309.0,80308.0,0.261493]
[1744076819984,0.1696,80309.0,80308.0,0.264493]
[1744076821265,0.1696,80309.0,80308.0,0.267493]
[1744076821483,0.1696,80309.0,80308.0,0.006]
[1744076821695,0.1696,80309.0,80308.0,0.018452]
[1744076822659,0.1696,80309.0,80308.0,0.015452]
[1744076822883,0.1696,80309.0,80308.0,0.013452]
[1744076823486,0.1696,80309.0,80308.0,0.012452]
[1744076823688,0.1696,80309.0,80308.0,0.014452]
[1744076824252,0.1706,80309.0,80300.0,0.012453]
[1744076824491,0.01245,80315.0,80299.0,0.061953]
[1744076824492,0.0126127,80357.0,80341.0,0.261384]
[1744076824710,0.2892683,80342.0,80341.0,0.261384]
[1744076824907,0.30322366,80342.0,80341.0,0.261384]
[1744076825275,0.64322366,80342.0,80341.0,0.012446]
[1744076825455,0.64322366,80342.0,80339.0,0.248942]
[1744076825456,0.34,80341.0,80340.0,0.012447]
[1744076825667,0.5096,80341.0,80340.0,0.012447]
[1744076825869,0.34,80341.0,80340.0,0.01257318]
[1744076826067,0.1696,80341.0,80340.0,0.01257318]
[1744076826268,0.98724,80360.0,80356.0,0.261336]
[1744076826468,0.1697687,80357.0,80356.0,0.261336]
[1744076827025,0.34,80356.0,80352.0,0.248904]
[1744076827166,0.34,80356.0,80354.0,0.012444]
[1744076827816,0.34,80356.0,80355.0,0.261339]
[1744076828404,0.348,80356.0,80355.0,0.261339]
[1744076828614,0.348,80356.0,80354.0,0.012444]
[1744076828812,0.34,80356.0,80355.0,0.012444]
[1744076829006,0.34,80356.0,80355.0,0.261339]
[1744076829193,0.348,80356.0,80355.0,0.262339]
[1744076830201,0.008,80356.0,80355.0,0.262339]
[1744076830612,0.355,80356.0,80355.0,0.262339]
[1744076830813,0.363,80356.0,80355.0,0.262339]
[1744076831047,0.355,80356.0,80355.0,0.261339]
[1744076831392,0.348,80356.0,80355.0,0.261339]
[1744076831592,0.355,80356.0,80355.0,0.261339]
[1744076832452,0.363,80356.0,80355.0,0.261339]
[1744076832663,0.015,80356.0,80355.0,0.261339]
[1744076832958,0.18292,80356.0,80355.0,0.261339]
[1744076833551,0.17592,80356.0,80355.0,0.261339]
[1744076834053,0.0001687,80366.0,80365.0,0.261307]
[1744076834248,0.1680487,80366.0,80365.0,0.261307]
[1744076834448,0.5080487,80366.0,80365.0,0.261307]
[1744076834649,0.0001683,80388.0,80386.0,0.012439]
[1744076834854,0.0001683,80388.0,80386.0,0.261238]
[1744076835051,0.0980049,80398.0,80392.0,0.012439]
[1744076835254,0.44061801,80398.0,80397.0,0.012438]
[1744076835594,0.34,80397.0,80395.0,0.012438]
[1744076835768,0.1418267,80397.0,80382.0,0.248808]
[1744076835939,0.02698085,80382.0,80381.0,0.00212618]
[1744076836158,0.49636955,80382.0,80381.0,0.00212618]
[1744076836583,0.66420955,80382.0,80381.0,0.00212618]
[1744076836788,0.65176955,80382.0,80381.0,0.00212618]
[1744076837022,0.66420955,80382.0,80381.0,0.00212618]
[1744076837370,0.15,80385.0,80381.0,0.17871488]
[1744076837643,0.02,80442.0,80381.0,0.17871488]
[1744076837644,6.1e-07,80405.0,80404.0,0.012437]
[1744076837784,3.1e-07,80412.0,80411.0,0.261158]
[1744076838570,3.1e-07,80412.0,80409.0,0.297226]
[1744076838571,3.1e-07,80412.0,80409.0,0.060936]
[1744076838767,0.1,80409.0,80399.0,0.012437]
[1744076838942,0.1,80409.0,80400.0,0.248753]
[1744076838943,0.01454085,80406.0,80400.0,0.248753]
[1744076839124,0.34,80404.0,80399.0,0.012437]
[1744076839323,0.34,80402.0,80396.0,0.261205]
[1744076839527,0.4693887,80402.0,80396.0,0.261205]
[1744076839774,0.4693887,80402.0,80398.0,0.261199]
[1744076839944,0.4693887,80402.0,80398.0,0.261198]
[1744076840145,0.4693887,80402.0,80401.0,0.012437]
[1744076840352,0.50784,80402.0,80401.0,0.012437]
[1744076840518,0.50784,80402.0,80400.0,0.012437]
[1744076840722,0.1,80399.0,80392.0,0.261217]
[1744076840920,0.48392955,80398.0,80390.0,0.012439]
[1744076841321,0.48392955,80398.0,80391.0,0.012439]
[1744076841601,0.48392955,80398.0,80393.0,0.248777]
[1744076841801,0.48392955,80398.0,80392.0,0.261217]
[1744076842030,0.48392955,80398.0,80394.0,0.261212]
[1744076842305,0.48392955,80398.0,80392.0,0.261217]
[1744076842462,0.48392955,80398.0,80391.0,0.012439]
[1744076842887,0.48392955,80398.0,80392.0,0.261219]
[1744076843093,0.34,80392.0,80377.0,0.248824]
[1744076843414,0.35244,80382.0,80371.0,0.248845]
[1744076843625,0.6371887,80382.0,80374.0,0.012441]
[1744076843809,0.6371887,80382.0,80375.0,0.012441]
[1744076844192,0.6371887,80382.0,80377.0,0.012441]
[1744076844395,0.5078,80382.0,80381.0,0.263255]
[1744076844612,0.6371887,80382.0,80381.0,0.002]
[1744076844823,0.66516955,80382.0,80381.0,0.002]
[1744076845019,0.65372955,80382.0,80381.0,0.002]
[1744076845224,0.6391887,80382.0,80381.0,0.002]
[1744076845427,0.5098,80382.0,80381.0,0.01444]
[1744076846157,0.5098,80382.0,80381.0,0.002]
[1744076846326,0.5088,80382.0,80381.0,0.002]
[1744076846647,0.5098,80382.0,80381.0,0.01444]
[1744076847048,0.5088,80382.0,80381.0,0.01444]
[1744076847445,0.5098,80382.0,80381.0,0.002]
[1744076848710,0.002,80382.0,80381.0,0.002]
[1744076848902,0.16984,80382.0,80381.0,0.01444]
[1744076849559,0.50984,80382.0,80381.0,0.01444]
[1744076849762,0.50784,80382.0,80381.0,0.01444]
[1744076849980,0.16784,80382.0,80381.0,0.01444]
[1744076850157,0.16784,80382.0,80381.0,0.01544]
[1744076850356,0.16784,80382.0,80381.0,0.10774]
[1744076850560,0.16784,80382.0,80381.0,0.10674]
[1744076850868,0.16784,80382.0,80381.0,0.10974]
[1744076851172,0.50784,80382.0,80381.0,0.10974]
[1744076851384,0.50784,80382.0,80381.0,0.11174]
[1744076856449,0.50784,80382.0,80381.0,0.007]
[1744076856802,0.52028,80382.0,80381.0,0.007]
[1744076857008,0.76973045,80382.0,80381.0,0.007]
[1744076857226,0.66420955,80382.0,80381.0,0.007]
[1744076857421,0.66420955,80382.0,80381.0,0.004]
[1744076857645,0.66420955,80382.0,80381.0,0.002]
[1744076857861,0.66420955,80382.0,80381.0,0.003]
[1744076858017,0.66820955,80382.0,80381.0,0.003]
[1744076858202,0.66820955,80382.0,80381.0,0.002]
[1744076858402,0.65576955,80382.0,80381.0,0.002]
[1744076858625,0.66691015,80382.0,80381.0,0.002]
[1744076859056,0.65447015,80382.0,80381.0,0.002]
[1744076859320,0.17448,80382.0,80381.0,0.263255]
[1744076859794,0.17448,80382.0,80381.0,0.309555]
[1744076860006,0.34,80393.0,80392.0,0.24878]
[1744076860221,0.50648,80393.0,80392.0,0.24878]
[1744076860640,0.50648,80393.0,80387.0,0.261232]
[1744076860848,0.50648,80393.0,80390.0,0.012439]
[1744076861538,0.50948,80393.0,80387.0,0.012439]
[1744076861842,0.51148,80393.0,80387.0,0.012439]
[1744076862001,0.012439,80389.0,80381.0,0.309553]
[1744076862208,0.65906825,80391.0,80384.0,0.248805]
[1744076862405,0.34,80391.0,80386.0,0.012439]
[1744076862826,0.34,80391.0,80390.0,0.248787]
[1744076863130,0.012439,80391.0,80381.0,0.0483]
[1744076863347,0.352439,80389.0,80381.0,0.0483]
[1744076863510,0.352439,80389.0,80381.0,0.002]
[1744076863713,0.34,80389.0,80386.0,0.261235]
[1744076864371,0.008,80391.0,80390.0,0.248787]
[1744076864571,0.007,80391.0,80390.0,0.261226]
[1744076865137,0.34,80392.0,80391.0,0.012439]
[1744076865343,0.50648,80392.0,80391.0,0.012439]
[1744076866989,0.50848,80392.0,80391.0,0.012439]
[1744076867397,0.17048,80392.0,80391.0,0.060439]
[1744076868929,0.17048,80392.0,80391.0,0.012439]
[1744076869332,0.17048,80392.0,80387.0,0.248793]
[1744076869333,0.17048,80392.0,80380.0,0.248816]
[1744076869534,0.65906825,80391.0,80379.0,0.106441]
[1744076869740,0.65906825,80391.0,80386.0,0.248797]
[1744076870043,0.34,80391.0,80387.0,0.012439]
[1744076870254,0.601251,80382.0,80381.0,0.002]
[1744076870411,0.7306397,80382.0,80381.0,0.002]
[1744076870908,0.34,80382.0,80381.0,0.312455]
[1744076871133,0.002,80392.0,80391.0,0.261223]
[1744076871495,0.16648,80393.0,80392.0,0.012439]
[1744076871720,0.50648,80393.0,80392.0,0.012439]
[1744076872691,0.50648,80393.0,80391.0,0.261223]
[1744076872846,0.34,80392.0,80391.0,0.012439]
[1744076873839,0.16948,80393.0,80392.0,0.261219]
[1744076874121,0.342,80392.0,80387.0,0.060439]
[1744076874513,0.342,80392.0,80386.0,0.261235]
[1744076874684,0.34,80392.0,80387.0,0.012439]
[1744076874889,0.34,80390.0,80389.0,0.012439]
[1744076875115,0.50648,80390.0,80389.0,0.012439]
[1744076876760,0.50748,80390.0,80389.0,0.012439]
[1744076877403,0.50848,80390.0,80389.0,0.012439]
[1744076878199,0.16848,80390.0,80389.0,0.012439]
[1744076879786,0.16748,80390.0,80389.0,0.012439]
[1744076880128,0.16648,80390.0,80389.0,0.014439]
[1744076880531,0.16648,80390.0,80389.0,0.016439]
[1744076881876,0.98668,80405.0,80404.0,0.059637]
[1744076882152,0.98668,80405.0,80404.0,0.012437]
[1744076882153,1.15312,80405.0,80404.0,0.012437]
[1744076882483,0.16644,80405.0,80404.0,0.1418257]
[1744076882682,0.01341824,80422.0,80404.0,0.1418257]
[1744076882683,0.0001685,80452.0,80426.0,0.012433]
[1744076882883,0.0001685,80452.0,80427.0,0.106833]
[1744076882884,0.16644,80428.0,80427.0,0.106833]
[1744076883112,0.16644,80428.0,80427.0,0.2362217]
[1744076883433,0.0001685,80452.0,80437.0,0.012432]
[1744076883608,0.0001685,80452.0,80437.0,0.14430671]
[1744076884205,0.012429,80451.0,80437.0,0.012432]
[1744076884580,0.012429,80451.0,80437.0,0.01255818]
[1744076884837,0.0125975,80452.0,80437.0,0.01255818]
[1744076885231,0.3525975,80452.0,80437.0,0.01255818]
[1744076885396,0.1665683,80438.0,80437.0,0.01255818]
[1744076885599,0.16646614,80438.0,80437.0,0.01255818]
[1744076886021,0.16646614,80438.0,80437.0,0.01655818]
[1744076886786,0.3401685,80452.0,80439.0,0.012431]
[1744076886787,0.1664,80441.0,80439.0,0.012431]
[1744076887050,0.0001685,80452.0,80451.0,0.261027]
[1744076887245,0.0001685,80452.0,80451.0,0.308227]
[1744076887453,0.0001685,80452.0,80451.0,0.4848157]
[1744076887748,0.0021681,80469.0,80468.0,0.260973]
[1744076887896,0.0021681,80469.0,80465.0,0.260981]
[1744076888091,0.0021681,80469.0,80468.0,0.260973]
[1744076888492,0.0021681,80469.0,80465.0,0.012427]
[1744076888935,0.0021681,80469.0,80463.0,0.260987]
[1744076889095,0.34,80467.0,80457.0,0.248579]
[1744076889311,0.34,80461.0,80456.0,0.00012618]
[1744076889494,0.352428,80457.0,80456.0,0.00012618]
[1744076889711,0.49635755,80457.0,80456.0,0.00012618]
[1744076889949,0.50549638,80457.0,80456.0,0.00012618]
[1744076890973,0.91729638,80457.0,80456.0,0.00012618]
[1744076891173,0.91929638,80457.0,80456.0,1.8e-07]
[1744076891473,0.91929638,80457.0,80414.0,0.0469]
[1744076891474,0.34,80426.0,80421.0,0.248691]
[1744076891775,0.34,80426.0,80418.0,0.012435]
[1744076891995,0.34,80424.0,80417.0,0.248703]
[1744076892196,0.34,80424.0,80423.0,0.012434]
[1744076893145,0.012432,80433.0,80423.0,0.012434]
[1744076893370,0.012434,80421.0,80407.0,0.012436]
[1744076893567,0.34,80429.0,80407.0,0.012436]
[1744076893568,0.34,80417.0,80416.0,0.012435]
[1744076893744,0.34,80417.0,80413.0,0.261145]
[1744076894053,0.34,80417.0,80407.0,0.012436]
[1744076894280,0.352435,80415.0,80397.0,0.248763]
[1744076894446,0.352435,80415.0,80399.0,0.012437]
[1744076894653,0.352435,80415.0,80399.0,0.261195]
[1744076894859,0.34,80415.0,80408.0,0.012436]
[1744076895257,1.48868,80415.0,80408.0,0.261165]
[1744076895444,1.48868,80415.0,80409.0,0.012436]
[1744076895639,1.48868,80415.0,80407.0,0.012436]
[1744076895890,1.501115,80415.0,80404.0,0.012437]
[1744076896062,1.501115,80415.0,80401.0,0.012437]
[1744076896258,1.501115,80415.0,80401.0,0.261188]
[1744076896493,1.502115,80415.0,80401.0,0.261188]
[1744076896706,1.78613144,80415.0,80382.0,0.0465]
[1744076896893,1.65672599,80415.0,80382.0,0.4609]
[1744076897233,2.06852599,80415.0,80383.0,0.248808]
[1744076897411,2.06852599,80415.0,80385.0,0.261241]
[1744076897557,2.21852599,80415.0,80383.0,0.01244]
[1744076897757,2.33702599,80415.0,80414.0,0.00112642]
[1744076897994,2.34657926,80415.0,80414.0,0.00112642]
[1744076898313,2.47598471,80415.0,80414.0,0.00112642]
[1744076898455,2.47598471,80415.0,80411.0,0.1]
[1744076898456,0.012435,80412.0,80411.0,0.1]
[1744076898655,0.012435,80412.0,80411.0,0.09887359]
[1744076898656,0.90816455,80412.0,80411.0,0.09887359]
[1744076900230,0.91116455,80412.0,80411.0,0.09987359]
[1744076900824,0.92016455,80412.0,80411.0,0.10087359]
[1744076901555,0.82016455,80412.0,80411.0,0.10087359]
[1744076901837,0.49259955,80412.0,80411.0,0.10087359]
[1744076901981,0.42079955,80412.0,80411.0,0.10087359]
[1744076902448,0.012,80412.0,80411.0,0.34959559]
[1744076902604,0.012,80412.0,80411.0,0.10087359]
[1744076902813,0.012,80412.0,80411.0,0.36203159]
[1744076903013,0.17496,80412.0,80411.0,0.36203159]
[1744076903207,0.178395,80412.0,80411.0,0.09987359]
[1744076903411,0.175395,80412.0,80411.0,0.09887359]
[1744076903610,0.184395,80412.0,80411.0,0.09987359]
[1744076904055,0.178395,80412.0,80411.0,0.09887359]
[1744076904420,0.181395,80412.0,80411.0,0.09887359]
[1744076905033,0.175395,80412.0,80411.0,0.09887359]
[1744076905486,0.178395,80412.0,80411.0,0.09887359]
[1744076905966,0.181395,80412.0,80411.0,0.09987359]
[1744076906811,0.188395,80412.0,80411.0,0.10087359]
[1744076908087,0.33232455,80412.0,80411.0,0.10087359]
[1744076908438,0.78382455,80412.0,80411.0,0.10087359]
[1744076909211,0.77782455,80412.0,80411.0,0.09987359]
[1744076909381,0.92782455,80412.0,80411.0,0.03761213]
[1744076909702,0.93082455,80412.0,80411.0,0.03861213]
[1744076909893,0.601245,80384.0,80383.0,0.0497]
[1744076910095,0.601245,80384.0,80381.0,0.002]
[1744076910096,0.34,80382.0,80381.0,0.002]
[1744076910955,1.32604,80384.0,80383.0,0.01244]
[1744076911183,1.14912645,80384.0,80383.0,0.01244]
[1744076912382,1.15012645,80384.0,80383.0,0.01244]
[1744076912579,1.15012645,80384.0,80383.0,0.1915287]
[1744076912780,1.15012645,80384.0,80383.0,0.2388287]
[1744076912982,0.16408645,80384.0,80383.0,0.2388287]
[1744076913209,0.34,80404.0,80403.0,0.012437]
[1744076913582,0.16296,80404.0,80403.0,0.01266414]
[1744076913969,0.50296,80404.0,80403.0,0.01266414]
[1744076914992,0.50396,80404.0,80403.0,0.01266414]
[1744076916846,0.516397,80404.0,80403.0,0.00022714]
[1744076917051,0.64580245,80404.0,80403.0,0.00022714]
[1744076917318,0.789732,80404.0,80403.0,0.00022714]
[1744076918214,0.788732,80404.0,80403.0,0.00022714]
[1744076918388,0.797732,80404.0,80403.0,0.00122714]
[1744076918592,0.797732,80404.0,80381.0,0.002]
[1744076918593,0.601251,80382.0,80381.0,0.002]
[1744076918791,0.8935997,80382.0,80381.0,0.00242182]
[1744076919198,0.50296,80382.0,80381.0,0.00242182]
[1744076919410,0.50296,80382.0,80381.0,0.01486182]
[1744076919771,0.50296,80382.0,80381.0,0.01686182]
[1744076920030,0.50296,80382.0,80381.0,0.01486182]
[1744076920224,0.50796,80382.0,80381.0,0.01486182]
[1744076920427,0.50896,80382.0,80381.0,0.01486182]
[1744076920646,0.50396,80382.0,80381.0,0.26367682]
[1744076922113,0.50296,80382.0,80381.0,0.26367682]
[1744076922438,0.50296,80382.0,80381.0,0.00542182]
[1744076922640,0.764211,80382.0,80381.0,0.00242182]
[1744076923078,0.764211,80382.0,80381.0,0.00542182]
[1744076923345,0.50296,80382.0,80381.0,0.00242182]
[1744076924339,0.50296,80382.0,80381.0,0.25123682]
[1744076924527,0.50296,80382.0,80381.0,0.26367682]
[1744076924704,0.50296,80382.0,80381.0,0.26567682]
[1744076925457,0.50296,80382.0,80381.0,0.26367682]
[1744076925859,0.50296,80382.0,80381.0,0.26567682]
[1744076926222,0.50296,80382.0,80381.0,0.26367682]
[1744076926421,0.50296,80382.0,80381.0,0.26667682]
[1744076927603,0.15922756,80404.0,80398.0,0.24876]
[1744076927906,0.1115,80404.0,80401.0,0.261187]
[1744076928202,0.50024,80403.0,80400.0,0.012437]
[1744076928787,0.012438,80396.0,80386.0,0.012439]
[1744076929114,0.34,80394.0,80389.0,0.261226]
[1744076929323,0.34,80394.0,80392.0,0.248778]
[1744076929654,0.34,80394.0,80393.0,0.012438]
[1744076929859,0.248795,80388.0,80380.0,0.261255]
[1744076930077,0.012439,80389.0,80382.0,0.10534]
[1744076930078,0.16024,80387.0,80382.0,0.10534]
[1744076930282,0.248808,80383.0,80374.0,0.0472]
[1744076930508,0.248808,80383.0,80378.0,0.249159]
[1744076930816,0.261248,80383.0,80378.0,0.249159]
[1744076931164,0.261248,80383.0,80378.0,0.000336]
[1744076931361,0.35244,80382.0,80378.0,0.000336]
[1744076931565,0.588811,80382.0,80378.0,0.000336]
[1744076931764,0.601251,80382.0,80378.0,0.000336]
[1744076932068,0.601251,80382.0,80381.0,0.00642182]
[1744076932614,0.602251,80382.0,80381.0,0.00642182]
[1744076933119,0.7326397,80382.0,80381.0,0.00642182]
[1744076935689,0.74212106,80382.0,80381.0,0.00642182]
[1744076936027,0.90236106,80382.0,80381.0,0.00642182]
[1744076936224,1.03575012,80382.0,80381.0,0.00642182]
[1744076936561,1.17175357,80382.0,80381.0,0.00642182]
[1744076936706,1.05290536,80382.0,80381.0,0.00642182]
[1744076937116,0.95190536,80382.0,80381.0,0.00642182]
[1744076937489,0.95190536,80382.0,80381.0,0.00242182]
[1744076937490,0.92090191,80382.0,80381.0,0.00242182]
[1744076937660,0.92590191,80382.0,80381.0,0.00242182]
[1744076938280,1.03390191,80382.0,80381.0,0.00242182]